[Event "*** Titled Tuesday Blitz"]
[Site "Chess.com"]
[Date "2018.05.01"]
[Round "3"]
[White "DishonorOnYourCow"]
[Black "Kirill_Klukin"]
[Result "1-0"]
[WhiteElo "2313"]
[BlackElo "2504"]
[TimeControl "180+2"]
[EndTime "13:40:15 PDT"]
[Termination "DishonorOnYourCow won by resignation"]

1. d4 {[%clk 0:02:51.7]} 1... Nf6 {[%clk 0:03:00.7]} 2. c4 {[%clk 0:02:52.1]}
2... e6 {[%clk 0:03:01.8]} 3. Nc3 {[%clk 0:02:52.8]} 3... a6 {[%clk 0:03:02.6]}
4. e4 {[%clk 0:02:52.4]} 4... Bb4 {[%clk 0:02:38.6]} 5. Bd3 {[%clk 0:02:49.6]}
5... Bxc3+ {[%clk 0:02:39.1]} 6. bxc3 {[%clk 0:02:50.1]} 6... d6 {[%clk
0:02:40.7]} 7. Nf3 {[%clk 0:02:12.9]} 7... Nbd7 {[%clk 0:02:41.3]} 8. O-O {[%clk
0:02:03.1]} 8... e5 {[%clk 0:02:36.2]} 9. h3 {[%clk 0:01:56.6]} 9... O-O {[%clk
0:02:35.4]} 10. Be3 {[%clk 0:01:45.3]} 10... Qe7 {[%clk 0:02:35.4]} 11. Nh4
{[%clk 0:01:36.3]} 11... Nb8 {[%clk 0:02:14.2]} 12. Nf5 {[%clk 0:00:48.2]} 12...
Bxf5 {[%clk 0:02:14.3]} 13. exf5 {[%clk 0:00:49.3]} 13... e4 {[%clk 0:02:12.6]}
14. Bc2 {[%clk 0:00:50.5]} 14... c6 {[%clk 0:02:13.4]} 15. Bg5 {[%clk
0:00:45.5]} 15... Nbd7 {[%clk 0:02:13.1]} 16. f3 {[%clk 0:00:40.1]} 16... d5
{[%clk 0:02:11.2]} 17. cxd5 {[%clk 0:00:40]} 17... cxd5 {[%clk 0:02:12.3]} 18.
fxe4 {[%clk 0:00:41.2]} 18... dxe4 {[%clk 0:02:13.6]} 19. Re1 {[%clk 0:00:39.3]}
19... Rac8 {[%clk 0:02:12.6]} 20. Rxe4 {[%clk 0:00:30.5]} 20... Qa3 {[%clk
0:02:06.5]} 21. Re3 {[%clk 0:00:28.2]} 21... Nd5 {[%clk 0:01:42.2]} 22. Rg3
{[%clk 0:00:20.8]} 22... Nxc3 {[%clk 0:01:36.1]} 23. Qg4 {[%clk 0:00:10.7]}
23... Ne2+ {[%clk 0:01:37]} 24. Qxe2 {[%clk 0:00:11.3]} 24... Qxg3 {[%clk
0:01:38.3]} 25. Be7 {[%clk 0:00:10.2]} 25... Rfe8 {[%clk 0:01:37.7]} 26. Bb3
{[%clk 0:00:09.1]} 26... Nf6 {[%clk 0:01:31.2]} 27. Bxf7+ {[%clk 0:00:08.8]}
27... Kh8 {[%clk 0:01:27.5]} 28. Bxe8 {[%clk 0:00:10]} 28... Rxe8 {[%clk
0:01:28.9]} 29. Re1 {[%clk 0:00:11]} 29... Nd5 {[%clk 0:01:25]} 30. Bh4 {[%clk
0:00:11.6]} 30... Rxe2 {[%clk 0:00:51.7]} 31. Bxg3 {[%clk 0:00:12.7]} 31...
Rxe1+ {[%clk 0:00:53]} 32. Bxe1 {[%clk 0:00:14.6]} 32... h5 {[%clk 0:00:50.5]}
33. Kf2 {[%clk 0:00:14.6]} 33... Kg8 {[%clk 0:00:51.6]} 34. Kf3 {[%clk
0:00:15.9]} 34... Kf7 {[%clk 0:00:53.1]} 35. Ke4 {[%clk 0:00:17.3]} 35... Nb6
{[%clk 0:00:46.9]} 36. Ke5 {[%clk 0:00:16.2]} 36... Ke7 {[%clk 0:00:41.7]} 37.
Bh4+ {[%clk 0:00:16.7]} 37... Kd7 {[%clk 0:00:42.8]} 38. f6 {[%clk 0:00:17.5]}
38... gxf6+ {[%clk 0:00:44]} 39. Kxf6 {[%clk 0:00:18.2]} 39... Nd5+ {[%clk
0:00:45.5]} 40. Ke5 {[%clk 0:00:17.6]} 40... Ne3 {[%clk 0:00:46.1]} 41. g3
{[%clk 0:00:16.9]} 41... b5 {[%clk 0:00:42.5]} 42. Bg5 {[%clk 0:00:17.5]} 42...
Nf1 {[%clk 0:00:41.6]} 43. g4 {[%clk 0:00:18.5]} 43... hxg4 {[%clk 0:00:42.4]}
44. hxg4 {[%clk 0:00:19.9]} 44... Nh2 {[%clk 0:00:41.9]} 45. Kf4 {[%clk
0:00:20.9]} 45... Kc6 {[%clk 0:00:37.6]} 46. Bf6 {[%clk 0:00:22]} 46... Nxg4
{[%clk 0:00:25.9]} 47. Kxg4 {[%clk 0:00:23.7]} 47... a5 {[%clk 0:00:26.2]} 48.
Kf3 {[%clk 0:00:24.6]} 48... b4 {[%clk 0:00:27.7]} 49. Ke3 {[%clk 0:00:25.5]}
49... a4 {[%clk 0:00:29.3]} 50. Kd3 {[%clk 0:00:26.6]} 50... Kd5 {[%clk
0:00:30.5]} 51. Be7 {[%clk 0:00:25.7]} 51... b3 {[%clk 0:00:28.2]} 52. axb3
{[%clk 0:00:27.1]} 52... axb3 {[%clk 0:00:30.1]} 53. Bc5 {[%clk 0:00:28.1]} 1-0

[Event "*** Titled Tuesday Blitz"]
[Site "Chess.com"]
[Date "2018.05.01"]
[Round "3"]
[White "StoreySniper"]
[Black "TrimitziosP7"]
[Result "1-0"]
[WhiteElo "2371"]
[BlackElo "2524"]
[TimeControl "180+2"]
[EndTime "13:40:22 PDT"]
[Termination "StoreySniper won by resignation"]

1. c4 {[%clk 0:03:01.9]} 1... Nf6 {[%clk 0:02:59.9]} 2. g3 {[%clk 0:03:03.3]}
2... c6 {[%clk 0:03:00.9]} 3. Bg2 {[%clk 0:03:04.7]} 3... d5 {[%clk 0:03:02.8]}
4. Nf3 {[%clk 0:03:05.2]} 4... h6 {[%clk 0:03:02.2]} 5. Qc2 {[%clk 0:03:03.5]}
5... e6 {[%clk 0:03:00]} 6. d4 {[%clk 0:03:04.2]} 6... Bd6 {[%clk 0:03:01]} 7.
c5 {[%clk 0:02:53.3]} 7... Bc7 {[%clk 0:03:01.8]} 8. O-O {[%clk 0:02:54.7]} 8...
O-O {[%clk 0:03:03.6]} 9. Nc3 {[%clk 0:02:55.5]} 9... Nbd7 {[%clk 0:03:05.5]}
10. Bf4 {[%clk 0:02:55.5]} 10... Re8 {[%clk 0:03:06.7]} 11. Bxc7 {[%clk
0:02:55.7]} 11... Qxc7 {[%clk 0:03:08.6]} 12. e4 {[%clk 0:02:52.8]} 12... dxe4
{[%clk 0:03:10.5]} 13. Nxe4 {[%clk 0:02:53.5]} 13... Nxe4 {[%clk 0:03:11.8]} 14.
Qxe4 {[%clk 0:02:53.9]} 14... Nf6 {[%clk 0:03:13.7]} 15. Qf4 {[%clk 0:02:49.2]}
15... Qxf4 {[%clk 0:03:13.9]} 16. gxf4 {[%clk 0:02:49.8]} 16... Nd5 {[%clk
0:03:15.8]} 17. f5 {[%clk 0:02:37]} 17... exf5 {[%clk 0:03:17.7]} 18. Rfe1
{[%clk 0:02:37.5]} 18... Be6 {[%clk 0:03:18.3]} 19. Ne5 {[%clk 0:02:36.7]} 19...
Rad8 {[%clk 0:03:19.8]} 20. Nc4 {[%clk 0:02:35.6]} 20... Re7 {[%clk 0:03:12.7]}
21. Bxd5 {[%clk 0:02:33.8]} 21... Rxd5 {[%clk 0:03:12.9]} 22. Nd6 {[%clk
0:02:28.2]} 22... Rd7 {[%clk 0:03:13.4]} 23. Rad1 {[%clk 0:02:19.3]} 23... g6
{[%clk 0:03:13.5]} 24. b4 {[%clk 0:02:18.6]} 24... b6 {[%clk 0:03:12.5]} 25. f4
{[%clk 0:02:17.5]} 25... Kf8 {[%clk 0:03:12.8]} 26. h4 {[%clk 0:02:18.2]} 26...
h5 {[%clk 0:03:13.2]} 27. Kf2 {[%clk 0:02:18.6]} 27... Ke7 {[%clk 0:03:14.2]}
28. Re5 {[%clk 0:02:04.9]} 28... Rxe5 {[%clk 0:03:14.5]} 29. dxe5 {[%clk
0:01:59.7]} 29... Rd8 {[%clk 0:03:11.7]} 30. cxb6 {[%clk 0:01:52.2]} 30... axb6
{[%clk 0:03:12.6]} 31. a4 {[%clk 0:01:53.6]} 31... Ra8 {[%clk 0:03:12.8]} 32.
Ra1 {[%clk 0:01:52]} 32... f6 {[%clk 0:03:11.7]} 33. a5 {[%clk 0:01:44.4]} 33...
c5 {[%clk 0:03:11.7]} 34. axb6 {[%clk 0:01:31.5]} 34... Rxa1 {[%clk 0:02:54.7]}
35. b7 {[%clk 0:01:31.9]} 35... Ra2+ {[%clk 0:02:55.6]} 36. Ke1 {[%clk 0:01:29]}
36... Ra1+ {[%clk 0:02:56.5]} 37. Kd2 {[%clk 0:01:26.9]} 37... Ra2+ {[%clk
0:02:57.7]} 38. Kc1 {[%clk 0:01:26.5]} 38... Ra1+ {[%clk 0:02:55.8]} 39. Kc2
{[%clk 0:01:15.5]} 39... Ra2+ {[%clk 0:02:51.5]} 40. Kc1 {[%clk 0:01:07.4]}
40... Ra1+ {[%clk 0:02:51.6]} 41. Kb2 {[%clk 0:01:08.7]} 41... Ra2+ {[%clk
0:02:51.8]} 42. Kb1 {[%clk 0:01:09.1]} 42... Ra4 {[%clk 0:02:50.8]} 43. b5
{[%clk 0:01:09.8]} 43... Rb4+ {[%clk 0:02:51.8]} 44. Kc1 {[%clk 0:01:09.3]}
44... fxe5 {[%clk 0:02:50.1]} 45. fxe5 {[%clk 0:00:49.9]} 45... Bd7 {[%clk
0:02:47.1]} 46. b8=Q {[%clk 0:00:47.2]} 46... Ke6 {[%clk 0:02:49]} 47. Qg8+
{[%clk 0:00:23.8]} 47... Kxe5 {[%clk 0:02:50.1]} 48. Nf7+ {[%clk 0:00:24.4]}
48... Kf6 {[%clk 0:02:39.5]} 49. Qf8 {[%clk 0:00:20]} 49... Ke6 {[%clk
0:02:34.2]} 50. Ng5+ {[%clk 0:00:19.9]} 50... Kd5 {[%clk 0:02:33]} 51. Qf7+
{[%clk 0:00:20.9]} 51... Kd6 {[%clk 0:02:33.2]} 52. Qf6+ {[%clk 0:00:20.9]}
52... Kc7 {[%clk 0:02:33.3]} 53. Qe7 {[%clk 0:00:20.7]} 53... Rxb5 {[%clk
0:02:33.6]} 54. Ne6+ {[%clk 0:00:21.2]} 54... Kc6 {[%clk 0:02:35.1]} 55. Nd8+
{[%clk 0:00:21.9]} 55... Kc7 {[%clk 0:02:36.5]} 56. Nf7 {[%clk 0:00:21.7]} 56...
Rb6 {[%clk 0:02:31.8]} 57. Qe5+ {[%clk 0:00:20.9]} 57... Kb7 {[%clk 0:02:29.4]}
58. Nd6+ {[%clk 0:00:21.5]} 58... Kc6 {[%clk 0:02:28.8]} 59. Nc4 {[%clk
0:00:22]} 59... Rb4 {[%clk 0:02:29.6]} 60. Qd6+ {[%clk 0:00:22.6]} 60... Kb5
{[%clk 0:02:30.1]} 61. Ne5 {[%clk 0:00:23.5]} 61... Be8 {[%clk 0:02:26.4]} 62.
Qb8+ {[%clk 0:00:24]} 62... Ka4 {[%clk 0:02:26.7]} 63. Qxe8+ {[%clk 0:00:24.3]}
63... Kb3 {[%clk 0:02:27.9]} 64. Qf7+ {[%clk 0:00:19.2]} 64... c4 {[%clk
0:02:29]} 65. Qxg6 {[%clk 0:00:20.1]} 65... Ra4 {[%clk 0:02:28.6]} 66. Qb6+
{[%clk 0:00:20.4]} 66... Rb4 {[%clk 0:02:29.4]} 67. Qe3+ {[%clk 0:00:21.2]}
67... c3 {[%clk 0:02:30.4]} 68. Nd3 {[%clk 0:00:20.2]} 68... Rb5 {[%clk
0:02:27.6]} 69. Ne1 {[%clk 0:00:18.2]} 69... Rb4 {[%clk 0:02:24.2]} 70. Qe6+
{[%clk 0:00:18.5]} 70... Ka4 {[%clk 0:02:22.9]} 71. Nc2 {[%clk 0:00:19.7]} 71...
Rxh4 {[%clk 0:02:23.4]} 72. Qa6+ {[%clk 0:00:19.7]} 72... Kb3 {[%clk 0:02:23.8]}
73. Qb7+ {[%clk 0:00:19.8]} 73... Ka4 {[%clk 0:02:24.1]} 74. Qd7+ {[%clk
0:00:20]} 74... Kb3 {[%clk 0:02:22.8]} 75. Qd5+ {[%clk 0:00:19.9]} 75... Ka4
{[%clk 0:02:20.9]} 76. Qa8+ {[%clk 0:00:18.7]} 76... Kb3 {[%clk 0:02:21.4]} 77.
Qa3+ {[%clk 0:00:18.6]} 77... Kc4 {[%clk 0:02:22.5]} 78. Qb4+ {[%clk 0:00:19.8]}
1-0

[Event "*** Titled Tuesday Blitz"]
[Site "Chess.com"]
[Date "2018.05.01"]
[Round "3"]
[White "SCIM"]
[Black "JSPrepz"]
[Result "0-1"]
[WhiteElo "2373"]
[BlackElo "2626"]
[TimeControl "180+2"]
[EndTime "13:40:24 PDT"]
[Termination "JSPrepz won on time"]

1. d4 {[%clk 0:03:01.9]} 1... Nf6 {[%clk 0:02:59.9]} 2. c4 {[%clk 0:03:02.9]}
2... c5 {[%clk 0:03:00.8]} 3. d5 {[%clk 0:03:02.8]} 3... b5 {[%clk 0:03:01.9]}
4. cxb5 {[%clk 0:03:03.5]} 4... a6 {[%clk 0:03:03.1]} 5. bxa6 {[%clk 0:03:04.7]}
5... g6 {[%clk 0:03:04.2]} 6. Nc3 {[%clk 0:03:01.5]} 6... Bg7 {[%clk 0:03:03]}
7. Nf3 {[%clk 0:03:00.4]} 7... O-O {[%clk 0:03:03.9]} 8. a7 {[%clk 0:02:50.1]}
8... Rxa7 {[%clk 0:03:04]} 9. e4 {[%clk 0:02:51.2]} 9... e6 {[%clk 0:03:04.7]}
10. Be2 {[%clk 0:02:42.9]} 10... exd5 {[%clk 0:03:05.7]} 11. exd5 {[%clk
0:02:44.2]} 11... d6 {[%clk 0:03:06.9]} 12. O-O {[%clk 0:02:45.6]} 12... Na6
{[%clk 0:03:05.1]} 13. h3 {[%clk 0:02:44.1]} 13... Nc7 {[%clk 0:03:04.3]} 14.
Bf4 {[%clk 0:02:41.8]} 14... Re8 {[%clk 0:03:04]} 15. Re1 {[%clk 0:02:33.3]}
15... Ne4 {[%clk 0:02:53.4]} 16. Nxe4 {[%clk 0:01:58.1]} 16... Rxe4 {[%clk
0:02:55.3]} 17. Bg5 {[%clk 0:01:59.5]} 17... Qe8 {[%clk 0:02:49.8]} 18. Bd3
{[%clk 0:01:53.1]} 18... Rxe1+ {[%clk 0:02:50.4]} 19. Qxe1 {[%clk 0:01:52.7]}
19... Bxb2 {[%clk 0:02:12.2]} 20. Qxe8+ {[%clk 0:01:50.5]} 20... Nxe8 {[%clk
0:02:14.1]} 21. Re1 {[%clk 0:01:38.6]} 21... Bd7 {[%clk 0:01:37.4]} 22. Bc4
{[%clk 0:01:38.3]} 22... Bg7 {[%clk 0:01:34.4]} 23. Rb1 {[%clk 0:01:27.5]} 23...
h6 {[%clk 0:01:26.7]} 24. Bf4 {[%clk 0:01:24.7]} 24... Ra4 {[%clk 0:01:14.6]}
25. Nd2 {[%clk 0:01:21.3]} 25... Bc3 {[%clk 0:01:14.4]} 26. Rc1 {[%clk
0:01:16.1]} 26... Bg7 {[%clk 0:01:15.2]} 27. Bg3 {[%clk 0:01:06.5]} 27... Bf8
{[%clk 0:01:07.2]} 28. Rb1 {[%clk 0:01:01.3]} 28... Nf6 {[%clk 0:01:04.5]} 29.
Rb8 {[%clk 0:00:57.2]} 29... Kg7 {[%clk 0:01:05.8]} 30. Rb7 {[%clk 0:00:41]}
30... Bf5 {[%clk 0:01:01.4]} 31. Bb3 {[%clk 0:00:29.7]} 31... Rd4 {[%clk
0:01:02.1]} 32. Nc4 {[%clk 0:00:19.8]} 32... Ne4 {[%clk 0:00:54.7]} 33. Ne3
{[%clk 0:00:12.9]} 33... Nxg3 {[%clk 0:00:48.8]} 34. fxg3 {[%clk 0:00:14]} 34...
Bd3 {[%clk 0:00:50.1]} 35. Rc7 {[%clk 0:00:11.2]} 35... h5 {[%clk 0:00:39.7]}
36. Kf2 {[%clk 0:00:11.6]} 36... Kg8 {[%clk 0:00:39.7]} 37. Rc8 {[%clk
0:00:11.5]} 37... Kg7 {[%clk 0:00:39.7]} 38. Rc7 {[%clk 0:00:11.6]} 38... Re4
{[%clk 0:00:33.7]} 39. Bd1 {[%clk 0:00:09.9]} 39... Kf6 {[%clk 0:00:25.1]} 40.
Bb3 {[%clk 0:00:10.1]} 40... Bh6 {[%clk 0:00:25.6]} 41. Nd1 {[%clk 0:00:07.2]}
41... c4 {[%clk 0:00:21.2]} 42. Ba4 {[%clk 0:00:06.6]} 42... Re2+ {[%clk
0:00:21.8]} 43. Kg1 {[%clk 0:00:04.9]} 43... Rxa2 {[%clk 0:00:22]} 0-1

[Event "*** Titled Tuesday Blitz"]
[Site "Chess.com"]
[Date "2018.05.01"]
[Round "3"]
[White "OparinGrigoriy"]
[Black "krzyzan94"]
[Result "1-0"]
[WhiteElo "2875"]
[BlackElo "2627"]
[TimeControl "180+2"]
[EndTime "13:40:29 PDT"]
[Termination "OparinGrigoriy won by resignation"]

1. e4 {[%clk 0:03:01.9]} 1... c5 {[%clk 0:02:59.2]} 2. Nf3 {[%clk 0:03:02.5]}
2... d6 {[%clk 0:02:59.2]} 3. c3 {[%clk 0:03:01.9]} 3... Nf6 {[%clk 0:02:59.5]}
4. Bb5+ {[%clk 0:03:00]} 4... Bd7 {[%clk 0:02:53]} 5. Bd3 {[%clk 0:03:00.5]}
5... Nc6 {[%clk 0:02:43.9]} 6. O-O {[%clk 0:02:59.3]} 6... g6 {[%clk 0:02:44.2]}
7. Re1 {[%clk 0:02:59.2]} 7... Bg7 {[%clk 0:02:44.9]} 8. h3 {[%clk 0:03:00.2]}
8... O-O {[%clk 0:02:44.7]} 9. Bc2 {[%clk 0:03:00.9]} 9... Rc8 {[%clk
0:02:30.7]} 10. d4 {[%clk 0:02:48.3]} 10... cxd4 {[%clk 0:02:29.1]} 11. cxd4
{[%clk 0:02:50.2]} 11... e5 {[%clk 0:02:23.9]} 12. d5 {[%clk 0:02:45.9]} 12...
Nb4 {[%clk 0:02:09.2]} 13. Nc3 {[%clk 0:02:46.1]} 13... Nxc2 {[%clk 0:02:08.4]}
14. Qxc2 {[%clk 0:02:48]} 14... Nh5 {[%clk 0:02:07.4]} 15. Qb3 {[%clk
0:02:43.4]} 15... b5 {[%clk 0:01:40.8]} 16. Qa3 {[%clk 0:02:38.2]} 16... Qb6
{[%clk 0:01:27.5]} 17. b4 {[%clk 0:02:36.2]} 17... Rc4 {[%clk 0:01:21.8]} 18.
Be3 {[%clk 0:02:34.8]} 18... Qc7 {[%clk 0:01:22.2]} 19. Rac1 {[%clk 0:02:27]}
19... Rc8 {[%clk 0:01:20.6]} 20. Ne2 {[%clk 0:02:27.2]} 20... f5 {[%clk
0:01:18.2]} 21. Nd2 {[%clk 0:02:09.6]} 21... f4 {[%clk 0:00:56]} 22. Nxc4 {[%clk
0:02:06.9]} 22... bxc4 {[%clk 0:00:56.1]} 23. Bd2 {[%clk 0:02:06.1]} 23... Nf6
{[%clk 0:00:51.6]} 24. f3 {[%clk 0:01:55.4]} 24... g5 {[%clk 0:00:52.7]} 25. Qa5
{[%clk 0:01:49]} 25... Qb7 {[%clk 0:00:46.6]} 26. Rc3 {[%clk 0:01:46]} 26...
Qb6+ {[%clk 0:00:31.6]} 27. Kf1 {[%clk 0:01:18.2]} 27... Qxa5 {[%clk 0:00:21.8]}
28. bxa5 {[%clk 0:01:18.9]} 28... Bb5 {[%clk 0:00:23.4]} 29. Rb1 {[%clk
0:01:16.7]} 29... Ba6 {[%clk 0:00:24.5]} 30. Be1 {[%clk 0:01:08.6]} 30... Nd7
{[%clk 0:00:21.4]} 31. Bf2 {[%clk 0:01:08.2]} 31... Rc7 {[%clk 0:00:23]} 32.
Rcc1 {[%clk 0:00:59.4]} 32... Kf7 {[%clk 0:00:24]} 33. Nc3 {[%clk 0:01:00.1]}
33... Nc5 {[%clk 0:00:21.1]} 34. Bxc5 {[%clk 0:00:59.5]} 34... Rxc5 {[%clk
0:00:23]} 35. Rb8 {[%clk 0:00:54.8]} 35... Bf6 {[%clk 0:00:19.1]} 36. Ra8 {[%clk
0:00:54.4]} 36... Rc7 {[%clk 0:00:19.7]} 37. Rb1 {[%clk 0:00:55.7]} 37... h5
{[%clk 0:00:17.1]} 38. a4 {[%clk 0:00:53.1]} 38... g4 {[%clk 0:00:15.7]} 39.
hxg4 {[%clk 0:00:52.8]} 39... hxg4 {[%clk 0:00:16.3]} 40. Rbb8 {[%clk
0:00:48.9]} 40... gxf3 {[%clk 0:00:14.7]} 41. gxf3 {[%clk 0:00:50.8]} 41... Be7
{[%clk 0:00:14.5]} 42. Ke2 {[%clk 0:00:50.5]} 42... Bf6 {[%clk 0:00:10.7]} 43.
Rf8+ {[%clk 0:00:48.8]} 43... Kg6 {[%clk 0:00:11.2]} 44. Rg8+ {[%clk 0:00:46.5]}
44... Kf7 {[%clk 0:00:11.7]} 45. Kd2 {[%clk 0:00:45.1]} 45... Rb7 {[%clk
0:00:11.5]} 46. Rgb8 {[%clk 0:00:45.1]} 46... Rc7 {[%clk 0:00:12.8]} 47. Kc2
{[%clk 0:00:46.3]} 47... Bh4 {[%clk 0:00:12.7]} 48. Rh8 {[%clk 0:00:45.1]} 48...
Bf6 {[%clk 0:00:12.3]} 49. Rhf8+ {[%clk 0:00:46.5]} 49... Kg7 {[%clk 0:00:12.8]}
50. Nb5 {[%clk 0:00:47.7]} 50... Bxb5 {[%clk 0:00:13]} 51. axb5 {[%clk
0:00:49.6]} 51... Rc5 {[%clk 0:00:14.3]} 52. Rfb8 {[%clk 0:00:50.5]} 52... c3
{[%clk 0:00:12.4]} 53. Rxa7+ {[%clk 0:00:51.7]} 53... Kg6 {[%clk 0:00:13.2]} 54.
b6 {[%clk 0:00:52.7]} 54... Rb5 {[%clk 0:00:02.6]} 55. b7 {[%clk 0:00:53]} 55...
Bh4 {[%clk 0:00:03.1]} 56. Rg8+ {[%clk 0:00:53.7]} 1-0

[Event "*** Titled Tuesday Blitz"]
[Site "Chess.com"]
[Date "2018.05.01"]
[Round "3"]
[White "Zhani-Z"]
[Black "sergiochess83"]
[Result "0-1"]
[WhiteElo "2394"]
[BlackElo "2795"]
[TimeControl "180+2"]
[EndTime "13:40:34 PDT"]
[Termination "sergiochess83 won on time"]

1. e4 {[%clk 0:02:59.2]} 1... c6 {[%clk 0:02:55.7]} 2. Nc3 {[%clk 0:02:58.5]}
2... d5 {[%clk 0:02:56.7]} 3. Nf3 {[%clk 0:03:00.1]} 3... Nf6 {[%clk 0:02:56.4]}
4. e5 {[%clk 0:02:59.2]} 4... Ne4 {[%clk 0:02:57.5]} 5. d4 {[%clk 0:02:43.8]}
5... Nxc3 {[%clk 0:02:44.2]} 6. bxc3 {[%clk 0:02:44.1]} 6... Bf5 {[%clk
0:02:46.1]} 7. Nh4 {[%clk 0:02:25.4]} 7... Bd7 {[%clk 0:02:42.2]} 8. Bd3 {[%clk
0:02:22.1]} 8... e6 {[%clk 0:02:43]} 9. Nf3 {[%clk 0:02:22.4]} 9... c5 {[%clk
0:02:44.3]} 10. O-O {[%clk 0:02:11.3]} 10... Nc6 {[%clk 0:02:37.2]} 11. Be3
{[%clk 0:02:10.9]} 11... Be7 {[%clk 0:02:32.3]} 12. Nd2 {[%clk 0:01:58.2]} 12...
Qa5 {[%clk 0:02:23.9]} 13. Nb3 {[%clk 0:01:42.4]} 13... Qc7 {[%clk 0:02:13.4]}
14. Bb5 {[%clk 0:01:17]} 14... Nxe5 {[%clk 0:02:04.1]} 15. Bxd7+ {[%clk
0:01:15.5]} 15... Nxd7 {[%clk 0:02:04.7]} 16. Qg4 {[%clk 0:01:10.1]} 16... O-O
{[%clk 0:02:01.7]} 17. dxc5 {[%clk 0:00:57.1]} 17... Nxc5 {[%clk 0:01:58.7]} 18.
Bd4 {[%clk 0:00:51.7]} 18... e5 {[%clk 0:01:45.8]} 19. Bxc5 {[%clk 0:00:45.1]}
19... Bxc5 {[%clk 0:01:46.4]} 20. Rad1 {[%clk 0:00:45.2]} 20... Rad8 {[%clk
0:01:45.6]} 21. Rfe1 {[%clk 0:00:38.9]} 21... Bb6 {[%clk 0:01:45.4]} 22. Qf3
{[%clk 0:00:39]} 22... e4 {[%clk 0:01:43]} 23. Qg3 {[%clk 0:00:37.3]} 23... Qxg3
{[%clk 0:01:38.5]} 24. hxg3 {[%clk 0:00:37.5]} 24... f5 {[%clk 0:01:38.1]} 25.
Kf1 {[%clk 0:00:27.6]} 25... Kf7 {[%clk 0:01:33.4]} 26. Nd4 {[%clk 0:00:19]}
26... Kf6 {[%clk 0:01:31.8]} 27. Rb1 {[%clk 0:00:19.6]} 27... Rc8 {[%clk
0:01:31.9]} 28. Rb3 {[%clk 0:00:18.9]} 28... Rc4 {[%clk 0:01:28.2]} 29. Rd1
{[%clk 0:00:15.1]} 29... Rfc8 {[%clk 0:01:25.6]} 30. Ne2 {[%clk 0:00:16]} 30...
R8c5 {[%clk 0:01:12.1]} 31. Nf4 {[%clk 0:00:09.6]} 31... Ke5 {[%clk 0:01:12.4]}
32. Ne2 {[%clk 0:00:10.6]} 32... Ra4 {[%clk 0:01:12.3]} 33. a3 {[%clk
0:00:11.3]} 33... Rca5 {[%clk 0:01:12.3]} 34. Nf4 {[%clk 0:00:10.2]} 34... g5
{[%clk 0:01:09.9]} 35. Ne2 {[%clk 0:00:10]} 35... Rxa3 {[%clk 0:01:09]} 36. Rb4
{[%clk 0:00:11]} 36... Ra1 {[%clk 0:01:09.2]} 37. Rbb1 {[%clk 0:00:11.1]} 37...
Rxb1 {[%clk 0:01:09.9]} 38. Rxb1 {[%clk 0:00:11.1]} 38... Ra2 {[%clk 0:01:10.5]}
39. Nd4 {[%clk 0:00:04.1]} 39... Bxd4 {[%clk 0:00:52.5]} 40. cxd4+ {[%clk
0:00:04.2]} 40... Kxd4 {[%clk 0:00:54.4]} 41. Rxb7 {[%clk 0:00:04.8]} 41... a5
{[%clk 0:00:55.9]} 42. Ra7 {[%clk 0:00:05.5]} 42... h5 {[%clk 0:00:50.2]} 43.
Ra6 {[%clk 0:00:05]} 43... Kc3 {[%clk 0:00:46.1]} 44. Ke1 {[%clk 0:00:03.4]}
44... Kxc2 {[%clk 0:00:43.6]} 45. Rd6 {[%clk 0:00:04]} 45... a4 {[%clk
0:00:38.6]} 46. Rxd5 {[%clk 0:00:05.1]} 46... a3 {[%clk 0:00:39.9]} 47. Ra5
{[%clk 0:00:01.9]} 47... Kd3 {[%clk 0:00:40.8]} 0-1